fUSD/lending_fUSD_20260202
["ID","MTS","AMOUNT","RATE_DAILY","PERIOD"]
[404319906,1770057041919,-500.0,0.00013698,2]
[404319907,1770057041928,-500.0,0.00013698,2]
[404319908,1770057041939,-500.0,0.00013698,2]
[404319909,1770057041951,-500.0,0.00013698,2]
[404319910,1770057041968,-500.0,0.00013698,2]
[404319911,1770057041980,-500.0,0.00013698,2]
[404319912,1770057041991,-500.0,0.00013698,2]
[404319913,1770057042002,-512.55184272,0.00013698,2]
[404319914,1770057042012,-500.0,0.00013698,2]
[404319915,1770057042027,-500.0,0.00013698,2]
[404319916,1770057042038,-500.0,0.00013698,2]
[404319917,1770057042048,-502.06664745,0.00013698,2]
[404319918,1770057042058,-748.74,0.00013698,2]
[404319919,1770057042071,-748.74,0.00013698,2]
[404319920,1770057042080,-748.74,0.00013698,2]
[404319921,1770057042090,-748.74,0.00013698,2]
[404319922,1770057042101,-748.74,0.00013698,2]
[404319923,1770057042110,-748.74,0.00013698,2]
[404319924,1770057042120,-748.74,0.00013698,2]
[404319925,1770057042130,-748.74,0.00013698,2]
[404319926,1770057042141,-748.74,0.00013698,2]
[404319927,1770057042150,-748.74,0.00013698,2]
[404319928,1770057042160,-748.74,0.00013698,2]
[404319929,1770057042170,-748.74,0.00013698,2]
[404319930,1770057042180,-748.74,0.00013698,2]
[404319931,1770057042189,-748.74,0.00013698,2]
[404319932,1770057042199,-748.74,0.00013698,2]
[404319933,1770057042209,-748.74,0.00013698,2]
[404319934,1770057042219,-748.74,0.00013698,2]
[404319935,1770057042228,-748.74,0.00013698,2]
[404319936,1770057042238,-748.74,0.00013698,2]
[404319937,1770057042247,-748.74,0.00013698,2]
[404319938,1770057042256,-748.74,0.00013698,2]
[404319939,1770057042269,-748.74,0.00013698,2]
[404319940,1770057042279,-748.74,0.00013698,2]
[404319941,1770057042288,-748.75883379,0.00013698,2]
[404319942,1770057042297,-500.0,0.00013698,2]
[404319943,1770057042307,-500.0,0.00013698,2]
[404319944,1770057042316,-500.0,0.00013698,2]
[404319945,1770057042326,-500.0,0.00013698,2]
[404319946,1770057042335,-500.0,0.00013698,2]
[404319947,1770057042345,-500.0,0.00013698,2]
[404319948,1770057042358,-500.0,0.00013698,2]
[404319949,1770057042369,-500.0,0.00013698,2]
[404319950,1770057042379,-500.0,0.00013698,2]
[404319951,1770057042389,-500.0,0.00013698,2]
[404319952,1770057042398,-500.0,0.00013698,2]
[404319953,1770057042409,-500.0,0.00013698,2]
[404319954,1770057042419,-185.13964732,0.00013698,2]
[404319955,1770057042429,-500.0,0.00013698,2]
[404319956,1770057042439,-500.0,0.00013698,2]
[404319957,1770057042448,-500.0,0.00013698,2]
[404319958,1770057042458,-500.0,0.00013698,2]
[404319959,1770057042469,-500.0,0.00013698,2]
[404319960,1770057042478,-500.0,0.00013698,2]
[404319961,1770057042488,-500.0,0.00013698,2]
[404319962,1770057042498,-500.0,0.00013698,2]
[404319963,1770057042508,-500.0,0.00013698,2]
[404319964,1770057042520,-500.0,0.00013698,2]
[404319965,1770057042529,-500.0,0.00013698,2]
[404319966,1770057042539,-500.0,0.00013698,2]
[404319967,1770057042549,-500.0,0.00013698,2]
[404319968,1770057042559,-500.0,0.00013698,2]
[404319969,1770057042569,-500.0,0.00013698,2]
[404319970,1770057042579,-607.97214338,0.00013698,2]
[404319971,1770057042588,-646.39442601,0.00013698,2]
[404319972,1770057042598,-1180.27,0.00013698,2]
[404319973,1770057042607,-1180.27,0.00013698,2]
[404319974,1770057042617,-1180.27,0.00013698,2]
[404319975,1770057042626,-1180.27,0.00013698,2]
[404319976,1770057042636,-1180.27,0.00013698,2]
[404319977,1770057042646,-1180.27,0.00013698,2]
[404319978,1770057042655,-1180.27,0.00013698,2]
[404319979,1770057042664,-1180.27,0.00013698,2]
[404319980,1770057042674,-1180.27,0.00013698,2]
[404319981,1770057042684,-1180.27,0.00013698,2]
[404319982,1770057042693,-1180.27,0.00013698,2]
[404319983,1770057042704,-1180.27,0.00013698,2]
[404319984,1770057042714,-1180.27,0.00013698,2]
[404319985,1770057042723,-1180.27,0.00013698,2]
[404319986,1770057042735,-1180.27,0.00013698,2]
[404319987,1770057042744,-1180.27,0.00013698,2]
[404319988,1770057042755,-1180.27,0.00013698,2]
[404319989,1770057042764,-1180.27,0.00013698,2]
[404319990,1770057042778,-554.31,0.00013698,2]
[404319991,1770057042787,-554.31,0.00013698,2]
[404319992,1770057042797,-554.31,0.00013698,2]
[404319993,1770057042807,-554.31,0.00013698,2]
[404319994,1770057042817,-554.31,0.00013698,2]
[404319995,1770057042826,-554.31,0.00013698,2]
[404319996,1770057042836,-554.31,0.00013698,2]
[404319997,1770057042845,-554.31,0.00013698,2]
[404319998,1770057042855,-554.31,0.00013698,2]
[404319999,1770057042866,-554.31,0.00013698,2]
[404320000,1770057042876,-554.31,0.00013698,2]
[404320001,1770057042887,-554.31,0.00013698,2]
[404320002,1770057042897,-554.31,0.00013698,2]
[404320003,1770057042908,-554.31,0.00013698,2]
[404320004,1770057042917,-554.31,0.00013698,2]
[404320005,1770057042927,-554.31,0.00013698,2]
[404320006,1770057042936,-554.31,0.00013698,2]
[404320007,1770057042947,-554.31,0.00013698,2]
[404320008,1770057042957,-596.97,0.00013698,2]
[404320009,1770057042966,-596.97,0.00013698,2]
[404320010,1770057042975,-596.97,0.00013698,2]
[404320011,1770057042985,-596.97,0.00013698,2]
[404320012,1770057042997,-596.97,0.00013698,2]
[404320013,1770057043006,-596.97,0.00013698,2]
[404320014,1770057043019,-596.97,0.00013698,2]
[404320015,1770057043029,-596.97,0.00013698,2]
[404320016,1770057043040,-596.97,0.00013698,2]
[404320017,1770057043051,-596.97,0.00013698,2]
[404320018,1770057043062,-596.97,0.00013698,2]
[404320019,1770057043073,-596.97,0.00013698,2]
[404320020,1770057043084,-596.97,0.00013698,2]
[404320021,1770057043094,-596.97,0.00013698,2]
[404320022,1770057043105,-596.97,0.00013698,2]
[404320023,1770057043115,-596.97,0.00013698,2]
[404320024,1770057043127,-596.97,0.00013698,2]
[404320025,1770057043142,-596.97,0.00013698,2]
[404320026,1770057043151,-500.0,0.00013698,2]
[404320027,1770057043161,-500.0,0.00013698,2]
[404320028,1770057043171,-500.0,0.00013698,2]
[404320029,1770057043181,-500.0,0.00013698,2]
[404320030,1770057043192,-500.0,0.00013698,2]
[404320031,1770057043201,-500.0,0.00013698,2]
[404320032,1770057043211,-334.5135457,0.00013698,2]
[404320033,1770057043221,-1206.79,0.00013698,2]
[404320034,1770057043232,-1206.79,0.00013698,2]
[404320035,1770057043242,-1206.79,0.00013698,2]
[404320036,1770057043252,-1206.79,0.00013698,2]
[404320037,1770057043262,-1206.79,0.00013698,2]
[404320038,1770057043274,-1206.79,0.00013698,2]
[404320039,1770057043283,-1206.79,0.00013698,2]
[404320040,1770057043292,-1206.79,0.00013698,2]
[404320041,1770057043302,-1206.79,0.00013698,2]
[404320043,1770057043312,-1206.79,0.00013698,2]
[404320045,1770057043321,-1206.79,0.00013698,2]
[404320047,1770057043330,-1206.79,0.00013698,2]
[404320048,1770057043340,-1206.79,0.00013698,2]
[404320049,1770057043349,-1206.79,0.00013698,2]
[404320051,1770057043358,-1206.79,0.00013698,2]
[404320053,1770057043367,-1206.79,0.00013698,2]
[404320055,1770057043376,-1206.79,0.00013698,2]
[404320057,1770057043386,-1206.79,0.00013698,2]
[404320058,1770057043395,-1206.79,0.00013698,2]
[404320060,1770057043405,-500.0,0.00013698,2]
[404320062,1770057043414,-1206.79,0.00013698,2]
[404320063,1770057043424,-500.0,0.00013698,2]
[404320064,1770057043433,-1206.79,0.00013698,2]
[404320065,1770057043443,-312.15594151,0.00013698,2]
[404320066,1770057043453,-1206.79,0.00013698,2]
[404320067,1770057043463,-1206.79,0.00013698,2]
[404320068,1770057043472,-1206.88314617,0.00013698,2]
[404320069,1770057043482,-500.0,0.00013698,2]
[404320070,1770057043491,-500.0,0.00013698,2]
[404320071,1770057043501,-500.0,0.00013698,2]
[404320072,1770057043511,-500.0,0.00013698,2]
[404320073,1770057043520,-500.0,0.00013698,2]
[404320074,1770057043530,-500.0,0.00013698,2]
[404320075,1770057043539,-500.0,0.00013698,2]
[404320076,1770057043549,-500.0,0.00013698,2]
[404320077,1770057043558,-500.0,0.00013698,2]
[404320078,1770057043567,-500.0,0.00013698,2]
[404320079,1770057043577,-500.0,0.00013698,2]
[404320080,1770057043587,-500.0,0.00013698,2]
[404320081,1770057043596,-500.0,0.00013698,2]
[404320082,1770057043605,-366.58671911,0.00013698,2]
[404320083,1770057043615,-500.0,0.00013698,2]
[404320084,1770057043624,-500.0,0.00013698,2]
[404320085,1770057043634,-500.0,0.00013698,2]
[404320086,1770057043643,-500.0,0.00013698,2]
[404320087,1770057043652,-500.0,0.00013698,2]
[404320088,1770057043662,-500.0,0.00013698,2]
[404320089,1770057043671,-500.0,0.00013698,2]
[404320090,1770057043681,-500.0,0.00013698,2]
[404320091,1770057043690,-500.0,0.00013698,2]
[404320092,1770057043700,-500.0,0.00013698,2]
[404320093,1770057043709,-500.0,0.00013698,2]
[404320094,1770057043719,-500.0,0.00013698,2]
[404320095,1770057043728,-500.0,0.00013698,2]
[404320096,1770057043738,-500.0,0.00013698,2]
[404320097,1770057043748,-500.0,0.00013698,2]
[404320098,1770057043758,-500.0,0.00013698,2]
[404320099,1770057043767,-500.0,0.00013698,2]
[404320100,1770057043777,-500.0,0.00013698,2]
[404320101,1770057044007,-520.9392261,0.00013698,2]
[404320102,1770057044018,-770.18,0.00013698,2]
[404320103,1770057044027,-770.18,0.00013698,2]
[404320104,1770057044037,-770.18,0.00013698,2]
[404320105,1770057044047,-770.18,0.00013698,2]
[404320106,1770057044060,-770.18,0.00013698,2]
[404320107,1770057044071,-770.18,0.00013698,2]
[404320108,1770057044082,-770.18,0.00013698,2]
[404320109,1770057044092,-770.18,0.00013698,2]
[404320110,1770057044102,-770.18,0.00013698,2]
[404320111,1770057044112,-770.18,0.00013698,2]
[404320112,1770057044121,-770.18,0.00013698,2]
[404320113,1770057044131,-770.18,0.00013698,2]
[404320114,1770057044142,-770.18,0.00013698,2]
[404320115,1770057044153,-770.18,0.00013698,2]
[404320116,1770057044162,-770.18,0.00013698,2]
[404320117,1770057044173,-770.18,0.00013698,2]
[404320118,1770057044183,-770.18,0.00013698,2]
[404320119,1770057044194,-770.18,0.00013698,2]
[404320120,1770057044205,-770.18,0.00013698,2]
[404320121,1770057044214,-770.18,0.00013698,2]
[404320122,1770057044224,-770.18,0.00013698,2]
[404320123,1770057044234,-770.18,0.00013698,2]
[404320124,1770057044244,-770.18,0.00013698,2]
[404320125,1770057044253,-770.24526317,0.00013698,2]
[404320126,1770057044263,-500.0,0.00013698,2]
[404320127,1770057044273,-500.0,0.00013698,2]
[404320128,1770057044282,-500.0,0.00013698,2]
[404320129,1770057044291,-500.0,0.00013698,2]
[404320130,1770057044300,-500.0,0.00013698,2]
[404320131,1770057044309,-607.62859807,0.00013698,2]
[404320132,1770057044319,-500.0,0.00013698,2]
[404320133,1770057044328,-500.0,0.00013698,2]
[404320134,1770057044337,-500.0,0.00013698,2]
[404320135,1770057044347,-469.64985738,0.00013698,2]
[404320136,1770057044356,-535.53919898,0.00013698,2]
[404320137,1770057044367,-605.88,0.00013698,2]
[404320138,1770057044377,-605.88,0.00013698,2]
[404320139,1770057044388,-605.88,0.00013698,2]
[404320140,1770057044398,-605.88,0.00013698,2]
[404320141,1770057044407,-605.88,0.00013698,2]
[404320142,1770057044417,-605.88,0.00013698,2]
[404320143,1770057044427,-605.88,0.00013698,2]
[404320144,1770057044436,-605.88,0.00013698,2]
[404320145,1770057044446,-605.88,0.00013698,2]
[404320146,1770057044456,-605.88,0.00013698,2]
[404320147,1770057044465,-605.88,0.00013698,2]
[404320148,1770057044475,-605.88,0.00013698,2]
[404320149,1770057044485,-605.88,0.00013698,2]
[404320150,1770057044494,-605.88,0.00013698,2]
[404320151,1770057044504,-605.88,0.00013698,2]
[404320152,1770057044514,-605.88,0.00013698,2]
[404320153,1770057044526,-605.88,0.00013698,2]
[404320154,1770057044535,-605.88,0.00013698,2]
[404320155,1770057044545,-500.0,0.00013698,2]
[404320156,1770057044554,-500.0,0.00013698,2]
[404320157,1770057044565,-500.0,0.00013698,2]
[404320158,1770057044574,-500.0,0.00013698,2]
[404320159,1770057044584,-500.0,0.00013698,2]
[404320160,1770057044593,-500.0,0.00013698,2]
[404320161,1770057044603,-500.0,0.00013698,2]
[404320162,1770057044612,-500.0,0.00013698,2]
[404320163,1770057044621,-500.0,0.00013698,2]
[404320164,1770057044631,-500.0,0.00013698,2]
[404320165,1770057044640,-500.0,0.00013698,2]
[404320166,1770057044649,-500.0,0.00013698,2]
[404320167,1770057044660,-500.0,0.00013698,2]
[404320168,1770057044668,-500.0,0.00013698,2]
[404320169,1770057044677,-500.0,0.00013698,2]
[404320170,1770057044686,-500.0,0.00013698,2]
[404320171,1770057044695,-500.0,0.00013698,2]
[404320172,1770057044705,-500.0,0.00013698,2]
[404320173,1770057044714,-561.99539873,0.00013698,2]
[404320174,1770057044723,-200.0,0.00013699,2]
[404320175,1770057044733,-6090.79,0.00013699,2]
[404320176,1770057044742,-711.64,0.00013699,2]
[404320177,1770057044751,-307.57,0.00013699,2]
[404320178,1770057044760,-256.31,0.00013699,2]
[404320179,1770057044771,-213.59,0.00013699,2]
[404320180,1770057044780,-2429.79,0.000137,2]
[404320181,1770057044790,-2429.79,0.000137,2]
[404320182,1770057044799,-2429.79,0.000137,2]
[404320183,1770057044807,-2429.79,0.000137,2]
[404320184,1770057044816,-2429.79,0.000137,2]
[404320185,1770057044826,-509.63945804,0.00013715,2]
[404320186,1770057044835,-1180.27,0.00013715,2]
[404320187,1770057044844,-554.31,0.00013715,2]
[404320188,1770057044854,-596.97,0.00013715,2]
[404320189,1770057044863,-500.0,0.00013715,2]
[404320190,1770057044872,-605.88,0.00013715,2]
[404320191,1770057044882,-290.17,0.00013731,2]
[404320192,1770057044891,-500.0,0.0001376,2]
[404320193,1770057044901,-441.47,0.0001376,2]
[404320194,1770057044911,-200.0,0.00013771,2]
[404320195,1770057044923,-871.73,0.000139,2]
[404320196,1770057044932,-200.0,0.00013909,2]
[404320197,1770057044945,-233.51889341,0.00013934,2]
[404320198,1770057044956,-1592.87721993,0.00013934,2]
[404320199,1770057044966,-194.72792766,0.00013934,2]
[404320200,1770057044975,-500.0,0.00013973,2]
[404320201,1770057044985,-500.0,0.00013973,2]
[404320202,1770057044994,-500.0,0.00013973,2]
[404320203,1770057045004,-500.0,0.00013973,2]
[404320204,1770057045014,-500.0,0.00013973,2]
[404320205,1770057045025,-164.70227396,0.00013973,2]
[404320206,1770057045034,-541.62569807,0.00013973,2]
[404320207,1770057045044,-500.0,0.00013973,2]
[404320208,1770057045053,-500.0,0.00013973,2]
[404320209,1770057045065,-170.36367963,0.00013973,2]
[404320210,1770057045076,-500.0,0.00013973,2]
[404320211,1770057045086,-500.0,0.00013973,2]
[404320212,1770057045095,-569.16951839,0.00013973,2]
[404320213,1770057045106,-500.0,0.00013973,2]
[404320214,1770057045115,-500.0,0.00013973,2]
[404320215,1770057045125,-500.0,0.00013973,2]
[404320216,1770057045135,-500.0,0.00013973,2]
[404320217,1770057045144,-500.0,0.00013973,2]
[404320218,1770057045154,-500.0,0.00013973,2]
[404320219,1770057045163,-500.0,0.00013973,2]
[404320220,1770057045172,-500.0,0.00013973,2]
[404320221,1770057045181,-259.40505883,0.00013973,2]
[404320222,1770057045190,-181.57502123,0.00013973,2]
[404320223,1770057045200,-500.0,0.00013973,2]
[404320225,1770057045209,-163.90719075,0.00013973,2]
[404320226,1770057045218,-500.0,0.00013973,2]
[404320227,1770057045228,-500.0,0.00013973,2]
[404320228,1770057045237,-500.0,0.00013973,2]
[404320229,1770057045247,-500.0,0.00013973,2]
[404320230,1770057045257,-500.0,0.00013973,2]
[404320231,1770057045266,-500.0,0.00013973,2]
[404320232,1770057045276,-163.07853281,0.00013973,2]
[404320233,1770057045286,-500.0,0.00013973,2]
[404320234,1770057045295,-500.12230816,0.00013973,2]
[404320235,1770057045304,-868.9,0.00013985,2]
[404320236,1770057045313,-736.0,0.00014012,2]
[404320237,1770057045322,-250.0,0.00014027,2]
[404320238,1770057045332,-500.0,0.00014034,2]
[404320239,1770057045341,-441.47,0.00014034,2]
[404320240,1770057045350,-773.23,0.0001404,2]
[404320241,1770057045359,-200.0,0.00014048,2]
[404320242,1770057045368,-200.0,0.00014097,2]
[404320243,1770057045378,-500.0,0.00014097,2]
[404320244,1770057045387,-823.0,0.00014102,2]
[404320245,1770057045396,-3292.0,0.00014128,2]
[404320246,1770057045405,-345038.1709274,0.00014185,2]
[404320247,1770057045414,-868.9,0.00014259,2]
[404320248,1770057045423,-456.97,0.00014276,2]
[404320249,1770057045432,-290.17,0.0001428,2]
[404320250,1770057045442,-500.0,0.00014308,2]
[404320251,1770057045452,-441.47,0.00014308,2]
[404320252,1770057045462,-773.23,0.00014314,2]
[404320253,1770057045471,-6090.79,0.00014384,2]
[404320254,1770057045481,-10331.11610173,0.0001439,2]
[404320255,1770057045489,-242.15909246,0.00014482,2]
[404320256,1770057045499,-1651.81367706,0.00014482,2]
[404320257,1770057045508,-201.93286099,0.00014482,2]
[404320258,1770057045517,-1000.0,0.00014521,2]
[404320259,1770057045528,-723.77841226,0.00014521,2]
[404320260,1770057045537,-545.34481126,0.00014521,2]
[404320261,1770057045546,-1000.0,0.00014521,2]
[404320262,1770057045556,-543.53042842,0.00014521,2]
[404320263,1770057045565,-233.72893135,0.00014521,2]
[404320264,1770057045575,-1000.0,0.00014521,2]
[404320265,1770057045584,-1000.0,0.00014521,2]
[404320266,1770057045593,-1000.0,0.00014521,2]
[404320267,1770057045603,-1000.0,0.00014521,2]
[404320268,1770057045612,-1000.0,0.00014521,2]
[404320269,1770057045621,-1000.0,0.00014521,2]
[404320270,1770057045630,-1000.0,0.00014521,2]
[404320272,1770057045640,-548.87500636,0.00014521,2]
[404320274,1770057045650,-546.2635897,0.00014521,2]
[404320276,1770057045660,-1000.0,0.00014521,2]
[404320278,1770057045669,-911.8365552,0.00014521,2]
[404320280,1770057045679,-1000.0,0.00014521,2]
[404320282,1770057045689,-1000.0,0.00014521,2]
[404320285,1770057045699,-156.95111861,0.00014521,2]
[404320286,1770057045709,-1000.0,0.00014521,2]
[404320287,1770057045719,-1000.0,0.00014521,2]
[404320288,1770057045729,-1000.0,0.00014521,2]
[404320289,1770057045738,-501.171316,0.00014521,2]
[404320290,1770057045747,-152.81544497,0.00014521,2]
[404320291,1770057045757,-868.9,0.00014533,2]
[404320292,1770057045768,-500.0,0.00014582,2]
[404320293,1770057045780,-441.47,0.00014582,2]
[404320294,1770057045790,-773.23,0.00014588,2]
[404320295,1770057045799,-200.0,0.00014645,2]
[404320296,1770057045808,-500.0,0.00014645,2]
[404320297,1770057045817,-84421.6180525,0.00014773,2]
[404320299,1770057045827,-988.5,0.00014807,2]
[404320300,1770057045836,-290.17,0.00014829,2]
[404320301,1770057045845,-2800.26,0.00014832,2]
[404320302,1770057045856,-250.20103246,0.00014856,2]
[404320303,1770057045865,-441.47,0.00014856,2]
[404320304,1770057045875,-773.23,0.00014862,2]
[404320305,1770057045884,-179.5507367,0.000149,2]
[404320306,1770057045893,-307.29973171,0.000149,2]
[404320307,1770057045903,-1186.16205934,0.00015,2]
[404320308,1770057045912,-2140.76085253,0.00015,14]
[404320309,1770057045921,-6770.64481546,0.00015,2]
[404320310,1770057045930,-367598.6231793,0.00015,3]
[404320311,1770057045940,-29378.89718232,0.00015,2]
[404320312,1770057045949,-418.0702292,0.00015,2]
[404320313,1770057045958,-346.92554585,0.00015028,2]
[404320314,1770057045968,-599.60298507,0.00015029,2]
[404320315,1770057045978,-747.8093786,0.00015029,2]
[404320316,1770057045990,-251.11897888,0.0001503,2]
[404320317,1770057046000,-209.40437684,0.0001503,2]
[404320318,1770057046010,-1712.93078312,0.0001503,2]
[404320319,1770057046021,-186.58,0.00015051,2]
[404320320,1770057046030,-1006.79391477,0.00015068,2]
[404320321,1770057046039,-1500.0,0.00015068,2]
[404320322,1770057046048,-1500.0,0.00015068,2]
[404320323,1770057046060,-582.73923754,0.00015068,2]
[404320324,1770057046074,-1500.0,0.00015068,2]
[404320325,1770057046084,-1374.07848669,0.00015068,2]
[404320326,1770057046094,-1500.0,0.00015068,2]
[404320327,1770057046105,-617.67942522,0.00015068,2]
[404320328,1770057046114,-1500.0,0.00015068,2]
[404320329,1770057046125,-1500.0,0.00015068,2]
[404320330,1770057046135,-1506.04407484,0.00015068,2]
[404320331,1770057046148,-1500.0,0.00015068,2]
[404320332,1770057046158,-1500.0,0.00015068,2]
[404320333,1770057046170,-1500.0,0.00015068,2]
[404320334,1770057046180,-1500.0,0.00015068,2]
[404320335,1770057046190,-900.0,0.00015068,2]
[404320336,1770057046200,-6090.79,0.00015068,2]
[404320337,1770057046211,-441.47,0.0001513,2]
[404320338,1770057046222,-222.88299738,0.00015193,2]
[404320339,1770057046231,-500.0,0.00015193,2]
[404320340,1770057046242,-1517.64,0.000153,2]
[404320341,1770057046251,-29999.99,0.0001531,2]
[404320342,1770057046262,-433.69,0.0001531,2]
[404320343,1770057046273,-27680.2,0.0001531,2]
[404320344,1770057046282,-9999.99,0.0001531,2]
[404320345,1770057046291,-500.0,0.00015315,2]
[404320346,1770057046301,-1252.0,0.0001537,2]
[404320347,1770057046310,-508.63384765,0.000154,2]
[404320348,1770057046319,-441.47,0.00015404,2]
[404320349,1770057046328,-7805.66,0.00015429,2]
[404320350,1770057046338,-500.63586771,0.00015473,2]
[404320351,1770057046347,-500.46237197,0.00015473,2]
[404320352,1770057046357,-163.34993731,0.00015473,2]
[404320353,1770057046416,-163.12661798,0.00015473,2]
[404320354,1770057046425,-500.0,0.00015473,2]
[404320355,1770057046434,-500.0,0.00015473,2]
[404320356,1770057046444,-500.0,0.00015473,2]
[404320357,1770057046453,-500.0,0.00015473,2]
[404320358,1770057046462,-559.67308476,0.00015473,2]
[404320359,1770057046472,-500.0,0.00015473,2]
[404320360,1770057046482,-500.0,0.00015473,2]
[404320361,1770057046491,-500.0,0.00015473,2]
[404320362,1770057046500,-500.0,0.00015473,2]
[404320363,1770057046509,-574.06272579,0.00015473,2]
[404320364,1770057046518,-500.0,0.00015473,2]
[404320365,1770057046528,-500.0,0.00015473,2]
[404320366,1770057046538,-500.0,0.00015473,2]
[404320367,1770057046547,-500.0,0.00015473,2]
[404320368,1770057046556,-500.0,0.00015473,2]
[404320369,1770057046566,-500.0,0.00015473,2]
[404320370,1770057046575,-163.46067997,0.00015473,2]
[404320371,1770057046584,-500.0,0.00015473,2]
[404320372,1770057046594,-500.0,0.00015473,2]
[404320373,1770057046603,-336.43827265,0.00015473,2]
[404320374,1770057046612,-500.0,0.00015473,2]
[404320375,1770057046621,-500.0,0.00015473,2]
[404320376,1770057046630,-500.0,0.00015473,2]
[404320377,1770057046639,-200.70028911,0.00015473,2]
[404320378,1770057046649,-500.0,0.00015473,2]
[404320379,1770057046658,-500.0,0.00015473,2]
[404320380,1770057046667,-522.30858015,0.00015473,2]
[404320381,1770057046676,-500.0,0.00015473,2]
[404320382,1770057046686,-340.09137446,0.00015473,2]
[404320383,1770057046696,-160.21125151,0.00015473,2]
[404320384,1770057046705,-500.0,0.00015473,2]
[404320385,1770057046715,-500.0,0.00015473,2]
[404320386,1770057046724,-500.0,0.00015473,2]
[404320387,1770057046734,-500.62768041,0.00015473,2]
[404320388,1770057046743,-500.0,0.00015473,2]
[404320389,1770057046752,-500.6120606,0.00015473,2]
[404320390,1770057046762,-161.45537985,0.00015473,2]
[404320391,1770057046771,-500.0,0.00015473,2]
[404320392,1770057046780,-500.0,0.00015473,2]
[404320393,1770057046790,-512.94754167,0.00015473,2]
[404320394,1770057046800,-500.0,0.00015473,2]
[404320395,1770057046809,-160.61738464,0.00015473,2]
[404320396,1770057046818,-500.0,0.00015473,2]
[404320397,1770057046827,-500.0,0.00015473,2]
[404320398,1770057046836,-500.0,0.00015473,2]
[404320399,1770057046846,-500.41005015,0.00015473,2]
[404320400,1770057046855,-185.46503654,0.00015473,2]
[404320401,1770057046865,-500.0,0.00015473,2]
[404320402,1770057046874,-565.00011393,0.00015473,2]
[404320403,1770057046883,-500.0,0.00015473,2]
[404320404,1770057046892,-500.0,0.00015473,2]
[404320405,1770057046901,-558.47394043,0.00015473,2]
[404320406,1770057046912,-500.0,0.00015473,2]
[404320407,1770057046922,-550.09529227,0.00015473,2]
[404320408,1770057046931,-500.0,0.00015473,2]
[404320409,1770057046940,-500.0,0.00015473,2]
[404320410,1770057046950,-500.0,0.00015473,2]
[404320411,1770057046959,-500.0,0.00015473,2]
[404320412,1770057046970,-500.0,0.00015473,2]
[404320413,1770057046980,-500.0,0.00015473,2]
[404320414,1770057046990,-500.0,0.00015473,2]
[404320415,1770057046999,-500.0,0.00015473,2]
[404320416,1770057047008,-500.0,0.00015473,2]
[404320417,1770057047017,-151.07783782,0.00015473,2]
[404320418,1770057047027,-160.54295648,0.00015473,2]
[404320419,1770057047035,-500.0,0.00015473,2]
[404320420,1770057047044,-500.40906893,0.00015473,2]
[404320421,1770057047054,-500.0,0.00015473,2]
[404320422,1770057047066,-464.35211832,0.00015473,2]
[404320423,1770057047075,-500.0,0.00015473,2]
[404320424,1770057047084,-593.37800921,0.00015473,2]